Cogmind - Beta 13 X2 @@@ ROGUE MODE // 2024.01.04 @ 22:41:52 Player: alice_fexa Result: Destroyed by MAIN.C with Heavy Quantum Rifle Performance ------------- Evolutions (9) 4500 Regions Visited (20) 4000 Robots Destroyed (197) 985 Value Destroyed (10576) 10576 Prototype IDs (54) 1080 Alien Tech Used (0) 0 Bonus (10650) 10650 TOTAL SCORE: 31791 Bonus ------- Triggered High Security 500 High Alert Combat Kills 3958 Follower Combat Kills 1969 Aligned with FarCom 300 Built Enhanced Grunts 300 Met R17 at Cetus 500 Met R17 at Research 2000 Met MAIN.C 5000 Friendly Fire -3877 Cogmind --------- Core Integrity 0/1600 Matter 300/300 Energy 100/100 System Corruption 30% Temperature Cool (9) Movement Core (50) Location -1/Command Parts ------- > --- POWER (3) -------- (None) > --- PROPULSION (5) --- (None) > --- UTILITY (13) ----- (None) > --- WEAPON (4) ------- (None) > --- INVENTORY (5) ---- Advanced Heat Sink Advanced Energy Well (500) High-capacity Matter Pod (200) Compact Matter Pod (150) Advanced Reaction Control System Peak State ------------ > --- POWER ------------ Zero-point Reactor Antimatter-Zero Reactor > --- PROPULSION ------- QT-ITA Exoskeleton > --- UTILITY ---------- Armored Scrap Engine Advanced Cooling System High-capacity Storage Unit Advanced Targeting Computer Experimental Targeting Computer Experimental Core Analyzer Advanced Kinecellerator Advanced Phase Shifter Centrium Light Armor Plating Centrium Medium Armor Plating Medium Regenerative Plating Advanced Force Field > --- WEAPON ----------- Light Antimatter Cannon Hyp. Ballistic Linear Construct/C > --- INVENTORY -------- Light Quantum Reactor Advanced Heat Sink Advanced Heat Sink Experimental Heat Sink Advanced Energy Well Experimental Energy Well High-capacity Matter Pod Compact Matter Pod Gravity Neutralizer Experimental Core Analyzer Advanced Reaction Control System Advanced Phase Shifter Layered Heavy Armor Plating Centrium Light Armor Plating Antimissile System Linear Accelerator Linear Accelerator Mini Smartbomb Launcher Ionic Axe [Rating: 208] Favorites ----------- Power Constructs Engine Light Angular Momentum Engine Power Core Micro Fission Core Reactor Constructs Propulsion Constructs Treads Advanced Treads Leg Constructs Wheel Wheel Utility Armored Scrap Engine Device Armored Scrap Engine Storage Large Storage Unit Processor Improved Targeting Computer Hackware Advanced Hacking Suite Protection Medium Regenerative Plating Weapon Constructs Energy Gun Beam Rifle Energy Cannon Cooled Particle Cannon Ballistic Gun Light Assault Rifle Ballistic Cannon Constructs Launcher Mini Smartbomb Launcher Special Weapon Improved Remote Datajack Impact Weapon Thunder Hammer Slashing Weapon Scythe Build | -11 -10 -10 -10 -9 -8 -7 -7 -7 -5 -5 -5 -4 -4 -4 -4 -4 -3 -2 -1 -1 ------- Run | Yrd Mat Min Exi Min Mat Fac Sto Rec Fac Upp Upp Fac Ext Cet Arc Hub Res Res Acc Com Slots Evolved 18 | . . . . . 4 2 . . 4 . . 2 . . . . 2 2 2 . Power 2 | . . . . . . . . . . . . 1 . . . . . . 1 . Propulsion 3 | . . . . . 1 . . . 1 . . 1 . . . . . . . . Utility 11 | . . . . . 3 1 . . 3 . . . . . . . 2 1 1 . Weapon 2 | . . . . . . 1 . . . . . . . . . . . 1 . . Parts Attached 267 | 7 6 6 . . 30 17 19 10 7 3 2 6 19 13 1 1 44 6 28 42 Power 15 | 1 2 . . . 3 . 1 2 1 . . 1 . . . . . . 1 3 Engine 8 | 1 2 . . . 3 . . 2 . . . . . . . . . . . . Core 3 | . . . . . . . 1 . 1 . . 1 . . . . . . . . Reactor 4 | . . . . . . . . . . . . . . . . . . . 1 3 Propulsion 18 | 2 1 3 . . 7 3 . 2 . . . . . . . . . . . . Treads 11 | 1 . 1 . . 6 2 . 1 . . . . . . . . . . . . Leg . | . . . . . . . . . . . . . . . . . . . . . Wheel 7 | 1 1 2 . . 1 1 . 1 . . . . . . . . . . . . Hover . | . . . . . . . . . . . . . . . . . . . . . Flight . | . . . . . . . . . . . . . . . . . . . . . Utility 155 | 1 2 . . . 11 6 3 3 4 3 2 3 10 12 . 1 41 3 21 29 Device 83 | . 1 . . . 4 1 1 3 3 2 1 2 7 5 . . 21 . 14 18 Storage 8 | 1 1 . . . 1 . . . . . . . . 1 . . 1 . 2 1 Processor 16 | . . . . . 1 1 . . . . . . 2 1 . . 5 1 2 3 Hackware 2 | . . . . . . . . . . . . . . . . . 1 1 . . Protection 46 | . . . . . 5 4 2 . 1 1 1 1 1 5 . 1 13 1 3 7 Artifact . | . . . . . . . . . . . . . . . . . . . . . Weapon 79 | 3 1 3 . . 9 8 15 3 2 . . 2 9 1 1 . 3 3 6 10 Energy Gun 19 | 2 1 1 . . 5 1 6 1 2 . . . . . . . . . . . Energy Cannon 7 | . . . . . 2 1 2 1 . . . 1 . . . . . . . . Ballistic Gun 11 | 1 . 1 . . 1 3 4 . . . . . . . . . 1 . . . Ballistic Cannon 6 | . . . . . . . . . . . . . . . . . . 1 1 4 Launcher 10 | . . 1 . . . 1 . . . . . . 2 . . . 1 1 1 3 Special Weapon 1 | . . . . . . . . . . . . . 1 . . . . . . . Impact Weapon 7 | . . . . . . . . . . . . 1 5 . . . 1 . . . Slashing Weapon 18 | . . . . . 1 2 3 1 . . . . 1 1 1 . . 1 4 3 Piercing Weapon . | . . . . . . . . . . . . . . . . . . . . . Special Melee Weapon . | . . . . . . . . . . . . . . . . . . . . . Unidentified Prototypes 21 | . . . . . . . 6 . . . . 1 . 3 . . 7 2 . 2 Parts Lost 47 | . 1 1 . . 2 . 1 . . . . 1 3 . . . 3 . 1 34 Power 4 | . 1 . . . . . 1 . . . . . . . . . . . . 2 Propulsion 7 | . . 1 . . 1 . . . . . . . . . . . . . . 5 Utility 24 | . . . . . . . . . . . . . 2 . . . 2 . 1 19 Weapon 12 | . . . . . 1 . . . . . . 1 1 . . . 1 . . 8 Highest Loss Streak 31 | . 1 1 . . 2 . 1 . . . . 1 3 . . . 2 . 1 31 To Critical Strikes . | . . . . . . . . . . . . . . . . . . . . . Average Slot Usage (%) 76 | . 88 99 100 100 99 98 99 73 71 70 70 67 64 62 62 63 65 65 66 62 Engine 3 | . 13 14 14 14 9 7 5 5 3 . . . . . . . . . . . Core 1 | . . . . . . . 1 . 1 5 5 8 3 5 1 . . . . . Reactor 2 | . . . . . . . . . . . . . 1 . 3 5 4 4 7 7 Treads 7 | . 14 14 14 14 20 23 23 7 4 . . . . . 1 5 2 . . . Wheel 1 | . 14 13 14 14 6 . . 1 . . . . . . . . . . . . Flight 1 | . . . . . . . . . . . . . . . . . 1 4 4 3 Device 17 | . 3 14 14 14 18 15 15 14 29 29 23 18 17 21 21 17 16 17 19 18 Storage 6 | . 14 14 14 14 9 7 7 7 5 5 5 5 5 5 5 5 4 4 4 3 Processor 8 | . . . . . 8 8 7 7 5 5 5 5 7 10 10 10 9 13 15 13 Protection 8 | . . . . . 8 13 14 7 5 5 10 11 10 5 5 7 12 8 5 8 Energy Gun 4 | . 14 13 14 14 11 13 10 3 3 5 5 5 . . . . . . . . Energy Cannon 1 | . . . . . 6 . 4 3 . . . 3 4 5 5 3 . . . . Ballistic Gun 2 | . 14 14 14 14 . 3 4 2 . . . . 2 . . . 1 . . . Ballistic Cannon 1 | . . . . . . . . . 2 . . . . . . 1 3 4 4 4 Slashing Weapon 2 | . . . . . . 3 2 6 5 5 5 1 . . 4 5 2 1 3 . Naked Turns 4 | . . . . . . . . . . . . . . . . . . . . 4 Heaviest Build 146 | 13 30 30 30 30 45 51 53 52 54 45 53 92 84 72 89 93 144 138 145 146 Greatest Support 272 | 20 16 20 10 10 66 70 70 78 69 69 38 50 104 73 171 171 272 145 145 175 Greatest Overweight (x) 3 | 1 2 2 2 2 3 . . 1 . 1 1 1 1 . 1 . . . . 1 Average Overweight (x) . | . 1 1 2 2 1 . . . . . 1 1 . . . . . . . . Largest Inventory Capacity 20 | 8 15 15 15 15 15 15 15 15 15 15 15 15 15 15 15 15 20 20 20 20 Average Capacity 16 | 7 14 15 15 15 15 15 15 15 15 15 15 15 15 15 15 15 19 20 20 19 Most Carried 20 | 4 15 15 15 15 15 15 15 15 15 15 14 15 15 15 15 15 20 20 20 20 Average Carried 15 | 2 11 15 14 15 14 14 14 14 13 13 13 13 14 14 14 15 17 19 19 18 Final Capacity 20 | 8 15 15 15 15 15 15 15 15 15 15 15 15 15 15 15 15 20 20 20 5 Final Carried 20 | 4 15 15 15 15 15 15 15 13 15 14 13 15 14 15 15 15 20 20 20 5 Scrap Engine Consumption 166 | . . . . . . . . 34 9 6 . 20 39 10 3 2 28 6 1 8 Constructs Created 5 | . . . . . . . . 2 1 . . 1 1 . . . . . . . Constructs Modified 74 | . . . . . . . . 8 6 4 . 8 18 . 7 1 13 5 . 4 Class Distribution -------------------- 37% | Scavenger-Construct 31% | Mutant 12% | Scavenger-Mutant 10% | Construct 4% | Tank Dominant Class ---------------- Mutant | -10/Materials Mutant | -10/Mines Scavenger-Mutant | -10/Exiles Scavenger-Mutant | -9/Mines Scavenger-Mutant | -8/Materials Scavenger-Mutant | -7/Factory Tank | -7/Storage Construct | -7/Recycling Mutant | -5/Factory Mutant | -5/Upper Caves Mutant | -5/Upper Caves Mutant | -4/Factory Construct | -4/Extension Commander-Construct | -4/Cetus Scavenger-Construct | -4/Archives Scavenger-Construct | -4/Hub_04(d) Scavenger-Construct | -3/Research Scavenger-Construct | -2/Research Scavenger-Construct | -1/Access Scavenger-Construct | -1/Command Resources | -11 -10 -10 -10 -9 -8 -7 -7 -7 -5 -5 -5 -4 -4 -4 -4 -4 -3 -2 -1 -1 ----------- Run | Yrd Mat Min Exi Min Mat Fac Sto Rec Fac Upp Upp Fac Ext Cet Arc Hub Res Res Acc Com Matter Collected 8244 | 178 398 64 38 . 323 155 436 166 122 37 . 82 280 207 47 58 709 430 894 3620 Remotely . | . . . . . . . . . . . . . . . . . . . . . Salvage Created 10849 | . 543 169 . . 821 97 994 191 195 195 . 254 614 321 81 . 586 713 970 4105 Parts 515 | . 26 15 . . 30 4 51 5 14 3 . 16 20 13 4 . 27 49 68 170 Haulers Intercepted 9 | . 2 . . . 2 . 2 . . . . . . . . . 1 1 1 . Recyclers Shooed 4 | . . . . . . . 2 . 1 . . . 1 . . . . . . . Parts Field Recycled . | . . . . . . . . . . . . . . . . . . . . . Retrieved Matter . | . . . . . . . . . . . . . . . . . . . . . Parts Self-Destructed 2 | . . . . . . . . . . 2 . . . . . . . . . . Prevented . | . . . . . . . . . . . . . . . . . . . . . Kills | -11 -10 -10 -10 -9 -8 -7 -7 -7 -5 -5 -5 -4 -4 -4 -4 -4 -3 -2 -1 -1 ------- Run | Yrd Mat Min Exi Min Mat Fac Sto Rec Fac Upp Upp Fac Ext Cet Arc Hub Res Res Acc Com Combat Hostiles Destroyed 145 | . 8 5 . . 9 2 15 2 4 . . 3 7 4 1 . 5 9 10 61 Melee 2 | . . . . . . . . . . . . . . . . . . . . 2 Guns 36 | . 8 2 . . 6 2 8 1 4 . . 1 3 . . . 1 . . . Cannons 76 | . . . . . 2 . 7 . . . . 2 . 1 1 . 4 6 7 46 AOE 26 | . . 3 . . . . . 1 . . . . 3 . . . . 3 3 13 Classes Destroyed 19 | . 5 2 . . 3 1 4 . . . . . . . . . . 1 . 3 Worker 11 | . 1 1 . . 1 . 1 . . . . 1 . . . . . 1 2 3 Builder 7 | . . . . . . . 2 . 1 . . . . . . . 1 2 1 . Tunneler 2 | . . 2 . . . . . . . . . . . . . . . . . . Hauler 9 | . 2 . . . 2 . 2 . . . . . . . . . 1 1 1 . Recycler 8 | . 1 . . . 2 . . 2 . . . . 2 . . . . . 1 . Mechanic 5 | . . . . . . . 1 . . . . . . . . . 1 . . 3 Operator 3 | . 1 . . . . . . . . . . . . . . . . 1 1 . Watcher 12 | . . . . . 2 . 2 . . . . 2 . . . . . 2 3 1 Swarmer 3 | . . 3 . . . . . . . . . . . . . . . . . . Cutter 10 | . . . . . . . . . . . . . . . . . . 4 3 3 Saboteur 2 | . . . . . . . . . . . . . . . . . . . . 2 Grunt 55 | . 8 2 . . 6 . 4 . . . . . 5 . . . 4 . . 26 Brawler 3 | . . . . . 1 . . . . . . . . . . . . . . 2 Duelist 8 | . . . . . . . 1 . . . . . . . . . . . . 7 Protector 1 | . . . . . . . . . . . . . . . . . . . . 1 Sentry 16 | . . . . . 2 . 6 2 . . . . . . 1 . 1 2 . 2 Hunter 12 | . . . . . . 2 2 . . . . . 2 1 . . . 2 . 3 Programmer 28 | . . . . . . . 2 . 4 . . 3 . . . . . 1 7 11 Heavy 1 | . . . . . . . . . . . . . . . . . . . . 1 Cetus Guard 3 | . . . . . . . . . . . . . . 3 . . . . . . M Guard 1 | . . . . . . . . . . . . . . . . . . . . 1 Combat Programmer 2 | . . . . . . . . . . . . . . . . . . . . 2 Best Kill Streak 11 | . 6 4 . . 3 2 4 1 2 . . 1 4 2 1 . 2 5 3 11 Combat Bots Only 10 | . 2 3 . . 3 2 3 1 2 . . 1 4 2 1 . 2 4 3 10 Max Kills in Single Turn 3 | . 1 2 . . 1 1 2 1 1 . . 1 2 1 1 . 1 3 2 3 Gunslinging . | . . . . . . . . . . . . . . . . . . . . . Exploded 3 | . . 2 . . . . . 1 . . . . 2 . . . . 3 2 3 Melee 1 | . . . . . . . . . . . . . . . . . . . . 1 Uniques/NPCs Destroyed 1 | . . . . . . . . . . . . . . 1 . . . . . . A7 (-4/Cetus) Combat | -11 -10 -10 -10 -9 -8 -7 -7 -7 -5 -5 -5 -4 -4 -4 -4 -4 -3 -2 -1 -1 -------- Run | Yrd Mat Min Exi Min Mat Fac Sto Rec Fac Upp Upp Fac Ext Cet Arc Hub Res Res Acc Com Hostile Shots Fired 1348 | . 32 16 . . 67 14 121 63 32 . . 42 128 18 . 9 95 25 76 610 Missed 583 | . 6 3 . . 17 4 52 22 11 . . 13 66 7 . 3 38 15 49 277 Damage Taken 16103 | . 320 152 . . 880 162 660 415 412 . . 598 1742 201 . 92 1398 123 681 8267 Core 2107 | . 98 26 . . 82 46 59 28 42 . . 21 17 23 . . 54 . . 1611 Absorbed by Shields 2322 | . . . . . . . . . . . . . . 124 . . 68 127 520 1483 Regen/Repaired (Parts) 3238 | . . . . . . . . 126 102 76 . 165 424 22 639 46 658 74 92 814 Core Remaining (%) 87 | 100 . . . 50 85 . . 81 . . 95 . . . . 94 95 100 . . Volleys Fired 670 | . 55 15 . . 62 8 72 21 18 1 . 41 51 11 4 7 58 30 50 166 Largest 3 | . 2 2 . . 2 3 3 2 2 1 . 2 2 1 1 1 2 1 1 3 Hottest 162 | . 85 85 . . 125 148 130 90 68 42 . 90 134 90 90 90 90 90 90 162 Shots Fired 984 | . 107 27 . . 119 22 167 29 34 1 . 54 72 10 4 7 61 30 50 190 Gun 430 | . 107 24 . . 74 22 108 20 26 1 . 19 23 . . . 6 . . . Cannon 531 | . . . . . 45 . 59 9 8 . . 35 46 10 4 7 55 29 48 176 Launcher 23 | . . 3 . . . . . . . . . . 3 . . . . 1 2 14 Special . | . . . . . . . . . . . . . . . . . . . . . Kinetic 490 | . 53 12 . . 11 7 49 5 16 . . 8 14 . . 1 61 29 48 176 Thermal 427 | . 54 12 . . 107 15 118 13 16 . . 35 51 . . 6 . . . . Explosive 23 | . . 3 . . . . . . . . . . 3 . . . . 1 2 14 Electromagnetic 44 | . . . . . 1 . . 11 2 1 . 11 4 10 4 . . . . . Robot Hit Streak 25 | . 12 7 . . 21 8 17 16 11 . . 9 15 5 2 6 7 11 9 25 Robot Miss Streak 4 | . 4 3 . . 4 2 3 2 3 . . 2 3 1 1 1 4 3 3 3 Penetration Max 2 | . . . . . . . . . . . . . 1 . . . 1 2 2 2 Secondary Targets 2 | . . . . . 1 1 . . . . . . . . . . . . . . Max Gunslinging Chain 1 | . . . . . 1 1 . . . . . . . . . . . . . . Shots Hit Robots 674 | . 69 15 . . 91 17 111 24 28 5 . 22 41 23 3 6 38 20 34 127 Core Hits 416 | . 25 14 . . 29 5 91 13 17 2 . 10 28 9 3 1 13 16 20 120 Critical Kills 11 | . 1 . . . 1 . 1 . . . . . . . . . 1 . 2 5 Critical Parts Destroyed 18 | . . 1 . . . . 1 . . . . . . . . . . 1 3 12 Critical Strikes 42 | . 4 1 . . 5 . 2 2 . . . . . . . . 1 1 6 20 Burn 8 | . 3 . . . 4 . . 1 . . . . . . . . . . . . Destroy 29 | . 1 1 . . 1 . 2 . . . . . . . . . 1 . 5 18 Blast 2 | . . . . . . . . . . . . . . . . . . . . 2 Smash 1 | . . . . . . . . . . . . . . . . . . 1 . . Sever 2 | . . . . . . . . 1 . . . . . . . . . . 1 . Melee Attacks 132 | . . . . . 2 5 9 9 . 6 . 4 9 16 . 1 11 18 35 7 Impact 19 | . . . . . . . . . . . . . 9 . . . 1 9 . . Slashing 113 | . . . . . 2 5 9 9 . 6 . 4 . 16 . 1 10 9 35 7 Piercing . | . . . . . . . . . . . . . . . . . . . . . Sneak Attacks 33 | . . . . . . . 2 4 . . . 1 . 16 . . 1 2 6 1 Combat Hostiles . | . . . . . . . . . . . . . . . . . . . . . Follow-up Attacks . | . . . . . . . . . . . . . . . . . . . . . Damage Inflicted 37562 | . 749 332 . . 1442 249 2701 814 624 267 . 839 1829 1428 174 332 1664 2613 3838 17667 Guns 5442 | . 749 167 . . 882 249 1857 285 494 . . 277 417 . . . 65 . . . Cannons 23898 | . . . . . 560 . 718 106 130 . . 321 713 369 174 332 1463 1948 2530 14534 Explosions 4378 | . . 165 . . . . . 111 . . . 145 560 . . . . 208 301 2888 Melee 3826 | . . . . . . . 126 312 . 267 . 96 139 1059 . . 136 457 1007 227 Ramming 18 | . . . . . . . . . . . . . . . . . . . . 18 Kinetic 22374 | . 247 55 . . 125 57 540 120 278 . . 121 247 . . 44 1528 1948 2530 14534 Thermal 6165 | . 502 112 . . 1317 192 2035 274 316 . . 380 749 . . 288 . . . . Explosive 4208 | . . 165 . . . . . . . . . 86 560 . . . . 208 301 2888 Electromagnetic 971 | . . . . . . . . 108 30 . . 156 134 369 174 . . . . . Impact 445 | . . . . . . . . . . . . . 139 . . . . 306 . . Slashing 3381 | . . . . . . . 126 312 . 267 . 96 . 1059 . . 136 151 1007 227 Piercing . | . . . . . . . . . . . . . . . . . . . . . Highest Corruption 30 | . . . . . . . 2 2 4 4 4 3 3 3 3 3 3 . 1 30 Average Corruption 3 | . . . . . . . 2 2 3 4 4 2 3 3 3 3 2 . 1 8 Corruption Purged 3 | . . . . . . . . . . . . . . . . . 2 . 1 . Corruption Blocked . | . . . . . . . . . . . . . . . . . . . . . Effects 147 | . . . . . . . 11 13 3 8 6 10 24 6 4 5 23 . 1 33 Message Errors 42 | . . . . . . . 2 5 2 3 2 3 6 . 1 . 8 . 1 9 Matter Fused 36 | . . . . . . . 2 5 1 1 1 2 6 2 2 4 3 . . 7 Heat Flow Errors 16 | . . . . . . . 4 2 . . 1 2 2 . . . 3 . . 2 Energy Discharges 15 | . . . . . . . 2 . . 3 1 1 3 1 1 . 1 . . 2 Parts Rejected 2 | . . . . . . . . . . . . . . . . . . . . 2 Data Loss (minor) 16 | . . . . . . . . . . . . 2 2 2 . 1 7 . . 2 Data Loss (major) 6 | . . . . . . . 1 . . . 1 . 1 . . . 1 . . 2 Misfires 1 | . . . . . . . . . . . . . 1 . . . . . . . Alerts 4 | . . . . . . . . 1 . 1 . . 1 . . . . . . 1 Weapon Failures 9 | . . . . . . . . . . . . . 2 1 . . . . . 6 Overload Shots 3 | . . . . . . . 1 1 . . . 1 . . . . . . . . Overflow Damage 3326 | . . 5 . . 17 . 44 132 . 100 . 36 83 80 . . 75 286 849 1619 Projectiles 2416 | . . . . . 17 . 42 . . . . . 44 . . . 75 110 614 1514 Explosions 106 | . . 5 . . . . . 6 . . . 36 . . . . . . 20 39 Melee 804 | . . . . . . . 2 126 . 100 . . 39 80 . . . 176 215 66 Knockbacks 102 | . . . . . . . . . 2 . . . . . . . 17 5 11 67 Impact 1 | . . . . . . . . . . . . . . . . . . 1 . . Kinetic 91 | . . . . . . . . . 2 . . . . . . . 17 4 10 58 Secondary 10 | . . . . . . . . . . . . . . . . . . . 1 9 Self-Inflicted Damage 250 | . . . . . . . . 108 . . . . . . . . . . 124 18 Shots 4 | . . . . . . . . 2 . . . . . . . . . . 2 . Rammed . | . . . . . . . . . . . . . . . . . . . . . Targets Rammed . | . . . . . . . . . . . . . . . . . . . . . Kicked . | . . . . . . . . . . . . . . . . . . . . . Crushed . | . . . . . . . . . . . . . . . . . . . . . Highest Temperature 358 | . 281 69 . . 22 . 169 201 . . 240 144 226 . . . 139 . 155 358 Average Temperature 52 | . 67 29 . . 8 . 25 45 . . 131 74 39 . . . 43 . 58 66 Received Heat Transfer 2382 | . 174 54 . . 396 . 156 84 . . . . 99 . . 9 189 . 12 1209 Effects 1 | . 1 . . . . . . . . . . . . . . . . . . . Interference 1 | . 1 . . . . . . . . . . . . . . . . . . . Siege Activations . | . . . . . . . . . . . . . . . . . . . . . Robots Corrupted 3 | . . . . . . . . . . . . . . 3 . . . . . . Combat Hostiles 3 | . . . . . . . . . . . . . . 3 . . . . . . Parts Fried 12 | . . . . . . . . 1 . . . 2 . 5 . . . 4 . . Impact Corruptions 11 | . . . . . . . . . . . . . 2 . . . . 6 1 2 Robots Melted 1 | . . . . . 1 . . . . . . . . . . . . . . . Combat Hostiles 1 | . . . . . 1 . . . . . . . . . . . . . . . Parts Melted 16 | . 2 1 . . 7 1 2 . 1 . . 2 . . . . . . . . Heat Transferred 9996 | . 1425 296 . . 3367 407 2279 433 518 . . 420 666 . . 185 . . . . Parts Sabotaged 10 | . . . . . . . . . . . . . . . . . . . . 10 Parts Stolen . | . . . . . . . . . . . . . . . . . . . . . Parts Stripped . | . . . . . . . . . . . . . . . . . . . . . Power Chain Reactions 3 | . . . . . . . . 2 . . . 1 . . . . . . . . Missiles Intercepted 7 | . . . . . . . . . . . . . . . . . . . . 7 Alert | -11 -10 -10 -10 -9 -8 -7 -7 -7 -5 -5 -5 -4 -4 -4 -4 -4 -3 -2 -1 -1 ------- Run | Yrd Mat Min Exi Min Mat Fac Sto Rec Fac Upp Upp Fac Ext Cet Arc Hub Res Res Acc Com Peak Influence 2164 | . 167 205 . . 216 69 393 144 443 . . 119 334 589 366 527 432 294 732 2164 Initial 436 | . . 58 . . . 63 . 109 367 . . . 12 67 155 128 276 24 176 436 Average 265 | . 93 89 . . 82 34 163 54 289 . . 32 126 374 350 414 198 90 437 1447 Maximum Alert Level 5 | . . 1 . . 1 . 1 . 2 . . . 1 2 1 2 2 1 3 5 Low Security (%) 63 | 100 100 81 . 100 97 100 64 100 38 . . 100 82 6 3 9 54 82 9 . Level 1 19 | . . 18 . . 2 . 35 . 41 . . . 17 57 96 19 40 17 32 . Level 2 9 | . . . . . . . . . 20 . . . . 36 . 71 4 . 52 9 Level 3 1 | . . . . . . . . . . . . . . . . . . . 4 10 Level 4 2 | . . . . . . . . . . . . . . . . . . . . 36 Level 5 2 | . . . . . . . . . . . . . . . . . . . . 33 High Security . | . . . . . . . . . . . . . . . . . . . . 10 Max Security . | . . . . . . . . . . . . . . . . . . . . . Squads Dispatched 62 | . 3 . . . 1 1 6 . 2 . . 2 3 . . 4 7 7 12 14 Investigation 10 | . 1 . . . . 1 . . . . . . 2 . . . 3 1 2 . Extermination 17 | . . . . . . . 2 . 2 . . 2 . . . 1 . 2 4 4 Reinforcement 23 | . 2 . . . 1 . 4 . . . . . 1 . . 3 4 3 3 2 Assault 8 | . . . . . . . . . . . . . . . . . . . . 8 Garrison 4 | . . . . . . . . . . . . . . . . . . 1 3 . Intercept . | . . . . . . . . . . . . . . . . . . . . . Searches Triggered 1 | . . . . . . . . . 1 . . . . . . . . . . . Construction Impeded 2 | . . . . . . . 1 . . . . . 1 . . . . . . . Haulers Reinforced 5 | . . . . . . . 1 . . . . . . . . 1 2 . 1 . Active Scanning Responses . | . . . . . . . . . . . . . . . . . . . . . Cargo Convoy Interrupts . | . . . . . . . . . . . . . . . . . . . . . Stealth | -11 -10 -10 -10 -9 -8 -7 -7 -7 -5 -5 -5 -4 -4 -4 -4 -4 -3 -2 -1 -1 --------- Run | Yrd Mat Min Exi Min Mat Fac Sto Rec Fac Upp Upp Fac Ext Cet Arc Hub Res Res Acc Com Distress Signals 17 | . 1 . . . 1 . 2 . . . . . . 2 . 2 5 . 3 1 Communications Jammed . | . . . . . . . . . . . . . . . . . . . . . Distress Signals . | . . . . . . . . . . . . . . . . . . . . . Times Spotted 291 | . 16 6 . . 19 2 23 2 7 . . 10 24 12 3 10 22 13 35 87 Peak Tracking Total 15 | . 4 3 . . 4 2 4 1 2 . . 4 5 5 3 3 5 5 6 15 Tactical Retreats 20 | . 1 1 . . . . . . . . . . . . . 1 1 3 7 6 Traps | -11 -10 -10 -10 -9 -8 -7 -7 -7 -5 -5 -5 -4 -4 -4 -4 -4 -3 -2 -1 -1 ------- Run | Yrd Mat Min Exi Min Mat Fac Sto Rec Fac Upp Upp Fac Ext Cet Arc Hub Res Res Acc Com Traps Triggered 13 | . 1 . . . 1 . 1 . . . . . 3 . . . 5 . 2 . Indirectly . | . . . . . . . . . . . . . . . . . . . . . Trap Hack Attempts . | . . . . . . . . . . . . . . . . . . . . . Triggered . | . . . . . . . . . . . . . . . . . . . . . Disarmed . | . . . . . . . . . . . . . . . . . . . . . Reprogrammed . | . . . . . . . . . . . . . . . . . . . . . Reused . | . . . . . . . . . . . . . . . . . . . . . Traps Extracted . | . . . . . . . . . . . . . . . . . . . . . Installed . | . . . . . . . . . . . . . . . . . . . . . Triggered . | . . . . . . . . . . . . . . . . . . . . . Machines | -11 -10 -10 -10 -9 -8 -7 -7 -7 -5 -5 -5 -4 -4 -4 -4 -4 -3 -2 -1 -1 ---------- Run | Yrd Mat Min Exi Min Mat Fac Sto Rec Fac Upp Upp Fac Ext Cet Arc Hub Res Res Acc Com Machines Disabled 23 | . . . . . 1 . 4 1 . . . 2 4 . 3 4 2 1 1 . Max in Single Turn 1 | . . . . . 1 . 1 1 . . . 1 1 . . 1 1 1 1 . Garrison Access 5 | . . . . . . 1 1 . . . . 1 . . . . 2 . . . Machines Repaired . | . . . . . . . . . . . . . . . . . . . . . Machines Dismantled . | . . . . . . . . . . . . . . . . . . . . . Machines Sabotaged . | . . . . . . . . . . . . . . . . . . . . . Overloaded Fab Kills . | . . . . . . . . . . . . . . . . . . . . . Hacking | -11 -10 -10 -10 -9 -8 -7 -7 -7 -5 -5 -5 -4 -4 -4 -4 -4 -3 -2 -1 -1 --------- Run | Yrd Mat Min Exi Min Mat Fac Sto Rec Fac Upp Upp Fac Ext Cet Arc Hub Res Res Acc Com Machines Accessed 77 | . 3 . 2 . 7 5 4 12 4 . . 7 13 . . 2 3 7 7 1 Terminals 51 | . 3 . . . 7 1 3 5 2 . . 4 13 . . 2 1 5 4 1 Fabricators 7 | . . . . . . 3 . . 1 . . 1 . . . . 1 . 1 . Repair Stations 1 | . . . . . . . . . . . . 1 . . . . . . . . Recycling Units 9 | . . . . . . . . 7 1 . . . . . . . . 1 . . Scanalyzers 1 | . . . . . . . . . . . . . . . . . . 1 . . Garrison Access 6 | . . . . . . 1 1 . . . . 1 . . . . 1 . 2 . Total Hacks 165 | . 7 . 2 . 17 10 8 36 9 . . 15 23 . . 4 5 14 13 2 Successful 64 | . 1 . 2 . 5 2 4 17 4 . . 6 9 . . 1 1 9 2 1 Failed 101 | . 6 . . . 12 8 4 19 5 . . 9 14 . . 3 4 5 11 1 Catastrophic 23 | . 1 . . . 4 1 1 3 2 . . 1 6 . . . 1 1 2 . Database Lockouts . | . . . . . . . . . . . . . . . . . . . . . Manual 88 | . 7 . 1 . 15 7 6 11 4 . . 9 3 1 . 4 2 7 11 . Terminals 111 | . 7 . . . 17 3 7 14 4 . . 9 23 . . 4 2 10 9 2 Fabricators 13 | . . . . . . 5 . . 2 . . 3 . . . . 1 . 2 . Repair Stations 2 | . . . . . . . . . . . . 2 . . . . . . . . Recycling Units 26 | . . . . . . . . 22 3 . . . . . . . . 1 . . Scanalyzers 3 | . . . . . . . . . . . . . . . . . . 3 . . Garrison Access 8 | . . . . . . 2 1 . . . . 1 . . . . 2 . 2 . Terminal Hacks 29 | . . . 2 . 2 1 2 6 2 . . 2 9 . . . . 2 . 1 Record 1 | . . . 1 . . . . . . . . . . . . . . . . . Part Schematic 2 | . . . . . . . . 1 . . . . 1 . . . . . . . Prototype ID Bank 2 | . . . . . . . . 2 . . . . . . . . . . . . Open Door 8 | . . . . . . . . . . . . 1 6 . . . . . . 1 Level Access Points 1 | . . . . . . . . . . . . . . . . . . 1 . . Branch Access Points 3 | . . . . . 1 1 . . 1 . . . . . . . . . . . Terminal Index 3 | . . . . . . . . 1 . . . 1 . . . . . 1 . . Unreport Threat 4 | . . . . . 1 . . 1 . . . . 2 . . . . . . . Locate Traps 2 | . . . . . . . 1 . 1 . . . . . . . . . . . Zone Layout 2 | . . . . . . . 1 1 . . . . . . . . . . . . Derelict Proto ID Bank 1 | . . . 1 . . . . . . . . . . . . . . . . . Fabricator Hacks . | . . . . . . . . . . . . . . . . . . . . . Repair Station Hacks . | . . . . . . . . . . . . . . . . . . . . . Recycling Unit Hacks 7 | . . . . . . . . 5 1 . . . . . . . . 1 . . Retrieve Components 7 | . . . . . . . . 5 1 . . . . . . . . 1 . . Scanalyzer 3 | . . . . . . . . . . . . . . . . . . 3 . . Insert Component 3 | . . . . . . . . . . . . . . . . . . 3 . . Garrison Access Hacks 4 | . . . . . . 1 1 . . . . 1 . . . . 1 . . . Seal Access 4 | . . . . . . 1 1 . . . . 1 . . . . 1 . . . Unauthorized Hacks 21 | . 1 . . . 3 . 1 6 1 . . 3 . . . 1 . 3 2 . Terminals 15 | . 1 . . . 3 . 1 2 1 . . 2 . . . 1 . 3 1 . Assimilate 3 | . . . . . 1 . . . 1 . . 1 . . . . . . . . Botnet 11 | . 1 . . . 2 . 1 2 . . . 1 . . . 1 . 2 1 . Disrupt 1 | . . . . . . . . . . . . . . . . . . 1 . . Fabricators 2 | . . . . . . . . . . . . 1 . . . . . . 1 . Fabnet 2 | . . . . . . . . . . . . 1 . . . . . . 1 . Repair Stations . | . . . . . . . . . . . . . . . . . . . . . Recycling Units 4 | . . . . . . . . 4 . . . . . . . . . . . . Tunnel 4 | . . . . . . . . 4 . . . . . . . . . . . . Scanalyzers . | . . . . . . . . . . . . . . . . . . . . . Garrison Access . | . . . . . . . . . . . . . . . . . . . . . Data Cores Recovered 1 | . 1 . . . . . . . . . . . . . . . . . . . Used . | . . . . . . . . . . . . . . . . . . . . . Hacking Detections 63 | . 3 . . . 7 4 3 10 4 . . 6 8 . . 2 3 6 7 . Full Trace Events 8 | . . . . . . 1 . 3 . . . . 2 . . . . 1 1 . Feedback Events . | . . . . . . . . . . . . . . . . . . . . . Feedback Blocked . | . . . . . . . . . . . . . . . . . . . . . Robot Schematics Acquired . | . . . . . . . . . . . . . . . . . . . . . Robots Built . | . . . . . . . . . . . . . . . . . . . . . Authchips . | . . . . . . . . . . . . . . . . . . . . . Time . | . . . . . . . . . . . . . . . . . . . . . Total Robot Build Rating . | . . . . . . . . . . . . . . . . . . . . . Part Schematics Acquired 2 | . . . . . . . . 1 . . . . 1 . . . . . . . Parts Built . | . . . . . . . . . . . . . . . . . . . . . Authchips . | . . . . . . . . . . . . . . . . . . . . . Time . | . . . . . . . . . . . . . . . . . . . . . Total Part Build Rating . | . . . . . . . . . . . . . . . . . . . . . Parts Repaired . | . . . . . . . . . . . . . . . . . . . . . Time . | . . . . . . . . . . . . . . . . . . . . . Parts Recycled . | . . . . . . . . . . . . . . . . . . . . . Recycled Matter . | . . . . . . . . . . . . . . . . . . . . . Retrieved Matter . | . . . . . . . . . . . . . . . . . . . . . Retrieved Components 11 | . . . . . . . . 5 3 . . . . . . . . 3 . . Parts Scanalyzed . | . . . . . . . . . . . . . . . . . . . . . Part Schematics Acquired . | . . . . . . . . . . . . . . . . . . . . . Parts Damaged . | . . . . . . . . . . . . . . . . . . . . . Bothacking | -11 -10 -10 -10 -9 -8 -7 -7 -7 -5 -5 -5 -4 -4 -4 -4 -4 -3 -2 -1 -1 ------------ Run | Yrd Mat Min Exi Min Mat Fac Sto Rec Fac Upp Upp Fac Ext Cet Arc Hub Res Res Acc Com Used RIF Installer . | . . . . . . . . . . . . . . . . . . . . . Robots Hacked 4 | . . . . . . . . . . . . . . . . . 4 . . . Non-combat . | . . . . . . . . . . . . . . . . . . . . . Combat 4 | . . . . . . . . . . . . . . . . . 4 . . . Robot Hacks Applied . | . . . . . . . . . . . . . . . . . . . . . Relay Couplers Released 5 | . . . . . . . . . . . . 2 . . . . 3 . . . Machine Destruction 5 | . . . . . . . . . . . . 2 . . . . 3 . . . Fabnet Peak Effective % 3 | . . . . . . . . . . . . . . . . . 3 1 . . Autooverrided 4 | . . . . . . . . . . . . . . . . . 4 . . . Robots Rewired 3 | . . . . . . . . . . . . . 3 . . . . . . . Allies Hacked 1 | . . . . . . . . . . . . 1 . . . . . . . . Hacks Repelled . | . . . . . . . . . . . . . . . . . . . . . Allies | -11 -10 -10 -10 -9 -8 -7 -7 -7 -5 -5 -5 -4 -4 -4 -4 -4 -3 -2 -1 -1 -------- Run | Yrd Mat Min Exi Min Mat Fac Sto Rec Fac Upp Upp Fac Ext Cet Arc Hub Res Res Acc Com Total Allies 30 | . . . . 1 1 . . . 1 . . 1 17 5 . . 4 . . . Largest Group 8 | . . . . 1 1 1 . . 1 . . 1 7 8 7 6 1 . . . Highest-Rated Group 736 | . . . . 31 31 10 . . 26 . . 10 319 736 577 524 56 . . . Highest-Rated Ally 159 | . . . . 31 31 10 . . 26 . . 10 159 159 96 96 56 . . . Total Orders 8 | . . . . . . 1 . . . 3 1 2 . . . . 1 . . . STAY 1 | . . . . . . . . . . . . 1 . . . . . . . . FOLLOW 2 | . . . . . . . . . . 1 . 1 . . . . . . . . EXPLORE 4 | . . . . . . 1 . . . 1 1 . . . . . 1 . . . RETURN 1 | . . . . . . . . . . 1 . . . . . . . . . . Ally Attacks 290 | . . . . . 13 . . . . . . . 152 52 24 44 5 . . . Total Damage 8290 | . . . . . 173 . . . . . . . 3496 1881 752 1887 101 . . . Kills 48 | . . . . . 2 . . . . . . . 22 9 4 10 1 . . . Allies Corrupted 2 | . . . . . . . . . . . . . . . . 2 . . . . Allies Melted . | . . . . . . . . . . . . . . . . . . . . . Intel | -11 -10 -10 -10 -9 -8 -7 -7 -7 -5 -5 -5 -4 -4 -4 -4 -4 -3 -2 -1 -1 ------- Run | Yrd Mat Min Exi Min Mat Fac Sto Rec Fac Upp Upp Fac Ext Cet Arc Hub Res Res Acc Com Robot Analysis Total . | . . . . . . . . . . . . . . . . . . . . . Derelict Logs Recovered 3 | . . 2 . . . . . . . 1 . . . . . . . . . . Drone Launches 5 | . . . . . . 1 . . . 1 1 . . . . . 2 . . . Drone Recoveries 3 | . . . . . . 1 . . . 1 . . . . . . 1 . . . Exploration | -11 -10 -10 -10 -9 -8 -7 -7 -7 -5 -5 -5 -4 -4 -4 -4 -4 -3 -2 -1 -1 ------------- Run | Yrd Mat Min Exi Min Mat Fac Sto Rec Fac Upp Upp Fac Ext Cet Arc Hub Res Res Acc Com Turns Passed 16851 | 56 649 459 267 70 1581 885 1249 1303 652 435 188 1014 1289 406 304 277 2111 839 1607 1210 Spaces Moved 11419 | 39 375 332 242 55 867 482 454 571 266 262 76 490 930 203 54 193 1710 1018 1865 935 Core 41 | 2 . . . . . . . . . . . . . . . . . . . 39 Treads 3360 | 6 . 3 . . 425 482 454 465 236 . . . . . 4 193 1092 . . . Legs 1115 | . . . . . . . . . . 36 76 45 689 203 50 . . . . 16 Wheels 1580 | 31 375 329 242 55 442 . . 106 . . . . . . . . . . . . Hover 942 | . . . . . . . . . 30 226 . 445 241 . . . . . . . Flight 4381 | . . . . . . . . . . . . . . . . . 618 1018 1865 880 Fastest Speed 50 | 50 95 110 110 110 110 153 158 115 116 116 241 140 72 72 72 95 85 55 55 50 Average Speed 103 | 100 112 114 110 110 137 155 158 189 196 146 241 166 91 72 128 95 90 55 55 62 Slowest Speed 241 | 160 115 240 110 110 225 158 158 238 207 241 241 241 152 72 152 95 95 85 55 117 Overloaded Moves . | . . . . . . . . . . . . . . . . . . . . . Propulsion Burnouts . | . . . . . . . . . . . . . . . . . . . . . Robots Hopped 26 | . . . . . . . . . . . . . . . . . . 3 21 2 Cave-ins Triggered . | . . . . . . . . . . . . . . . . . . . . . Exploration Rate (%) 44 | 4 44 67 62 12 55 18 68 98 7 66 20 11 89 59 80 24 65 23 48 23 Regions Visited 20 Branch Regions 12 Pre-discovered Areas 6 | . . 1 1 . . . . 4 . . . . . . . . . . . . Known Exits Taken 4 | . . . . . . 1 . . 1 . . . . . . . 1 1 . . Unknown Exits Taken 16 | 1 1 1 1 1 1 . 1 1 . 1 1 1 1 1 1 1 . . 1 . Scrap Searched 2 | . . 1 . . . . . . . 1 . . . . . . . . . . Spaces Dug 138 | . . . . . 1 5 14 2 . 1 . 3 4 . . 1 14 23 64 6 Terrain Destroyed 615 | . . 7 . . 1 5 35 15 . 1 . 34 47 . . 2 43 62 132 231 Melee 59 | . . . . . 1 5 4 2 . 1 . . 4 . . 1 8 12 18 3 Projectile 331 | . . . . . . . 31 1 . . . 7 8 . . 1 35 38 91 119 AOE 225 | . . 7 . . . . . 12 . . . 27 35 . . . . 12 23 109 Terrain Rammed 2 | . . . . . . . . . . . . . . . . . . . . 2 Walls Destroyed . | . . . . . . . . . . . . . . . . . . . . . Machines Disabled . | . . . . . . . . . . . . . . . . . . . . . Actions | -11 -10 -10 -10 -9 -8 -7 -7 -7 -5 -5 -5 -4 -4 -4 -4 -4 -3 -2 -1 -1 --------- Run | Yrd Mat Min Exi Min Mat Fac Sto Rec Fac Upp Upp Fac Ext Cet Arc Hub Res Res Acc Com Total 15406 | 52 506 387 243 64 1156 603 860 760 367 305 82 636 1283 430 284 279 2206 1237 2324 1342 Wait 2568 | 3 52 31 . 10 148 66 288 131 61 32 4 82 227 168 225 75 319 151 336 159 Move 11350 | 38 374 331 241 54 866 481 453 570 265 261 75 489 929 202 53 192 1709 1011 1825 931 Hop 23 | . . . . . . . . . . . . . . . . . . 3 18 2 Pick Up 138 | 3 13 1 1 . 17 11 5 3 7 . . 5 5 5 1 1 23 9 13 15 Fast Attach 94 | 7 2 1 . . 4 1 8 2 1 . . 3 4 8 . 1 28 1 7 16 Attach 63 | . 1 . . . 5 3 . 6 5 . 1 2 7 . 1 . 9 3 8 12 Detach 27 | 1 1 . . . 1 . . 4 4 . . 3 5 1 . . 3 2 2 . Swap 110 | . 3 5 . . 21 13 11 2 1 3 1 1 8 5 . . 7 2 13 14 Drop 204 | . 5 3 1 . 30 15 14 12 5 2 1 6 12 14 . 2 39 8 17 18 Fire 670 | . 55 15 . . 62 8 72 21 18 1 . 41 51 11 4 7 58 30 50 166 Melee 131 | . . . . . 2 5 9 9 . 6 . 4 9 16 . 1 11 17 35 7 Ram 2 | . . . . . . . . . . . . . . . . . . . . 2 Kick . | . . . . . . . . . . . . . . . . . . . . . Crush . | . . . . . . . . . . . . . . . . . . . . . Escape Stasis 5 | . . . . . . . . . . . . . 5 . . . . . . . Rewire 21 | . . . . . . . . . . . . . 21 . . . . . . . Trap . | . . . . . . . . . . . . . . . . . . . . . Miscellaneous . | . . . . . . . . . . . . . . . . . . . . . Route ------- -11/Scrapyard -10/Materials -10/Mines (discovered 3 exits: [*Mat x2] / *Exi) -10/Exiles (discovered 2 exits: [*Min x2]) -9/Mines -8/Materials -7/Factory (discovered 4 exits: [*Fac] / *Sto / Low x2) -7/Storage -7/Recycling -5/Factory (discovered 2 exits: *Upp x2) -5/Upper Caves -5/Upper Caves -4/Factory (discovered 2 exits: [*Upp] / *Ext) -4/Extension (discovered 2 exits: *Res / *Cet) -4/Cetus (discovered 2 exits: *Res / [*Arc]) -4/Archives (discovered 3 exits: *Res / *Hub x2) -4/Hub_04(d) -3/Research (discovered 2 exits: *Res x2) -2/Research (discovered 3 exits: *Acc x3) -1/Access -1/Command History --------- Turn | Location | Event 17 | -11/Scrapyard | Discovered new exit (range 14) 57 | -11/Scrapyard | Entered Materials 307 | -10/Materials | Build established: Mutant 671 | -10/Materials | Discovered new exit (range 13) 706 | -10/Materials | Entered Mines 757 | -10/Mines | Learned Materials stockpile data 821 | -10/Mines | Discovered new exit (range 6) 849 | -10/Mines | Discovered new exit (range 4) 1128 | -10/Mines | Learned 2 Materials zone layouts 1139 | -10/Mines | Learned location of Storage (-7) 1160 | -10/Mines | Deemed a non-threat by the Exiles lab entrance 1161 | -10/Mines | Discovered new exit (range 5) 1165 | -10/Mines | Entered Exiles 1183 | -10/Exiles | Discovered new exit (range 15) 1195 | -10/Exiles | Met 8R-AWN 1208 | -10/Exiles | Met EX-HEX 1242 | -10/Exiles | Met EX-BIN 1258 | -10/Exiles | Aligned with FarCom system 1259 | -10/Exiles | Given EX-Vault access code 1285 | -10/Exiles | Opened EX-Vault 1294 | -10/Exiles | Found Supersonic Drone Bay 1314 | -10/Exiles | Build established: Scavenger-Mutant 1321 | -10/Exiles | Warned to stay clear of 0b10 Research branches 1352 | -10/Exiles | Met EX-DEC 1356 | -10/Exiles | Learned location of Zion (-7) 1420 | -10/Exiles | Discovered new exit (range 14) 1432 | -10/Exiles | Left Exiles lab with Supersonic Drone Bay 1432 | -10/Exiles | Entered Mines 1435 | -9/Mines | Received a Mining Laser from a helpful Derelict 1489 | -9/Mines | Discovered new exit (range 9) 1502 | -9/Mines | Entered Materials 1502 | -8/Materials | Accompanied by 1 ally 1502 | -8/Materials | Evolved 4 slots: Propulsion x1, Utility x3 2439 | -8/Materials | Build established: Mutant 2837 | -8/Materials | Build established: Scavenger-Mutant 3020 | -8/Materials | Discovered new exit (range 7) 3083 | -8/Materials | Entered Factory 3083 | -7/Factory | Accompanied by 1 ally 3083 | -7/Factory | Evolved 2 slots: Utility x1, Weapon x1 3205 | -7/Factory | Identified exit to Storage 3205 | -7/Factory | Identified exit to Lower Caves 3655 | -7/Factory | Discovered new exit (range 8) 3968 | -7/Factory | Entered Storage 4081 | -7/Storage | Build established: Mutant 4906 | -7/Storage | Build established: Tank 5214 | -7/Storage | Used back door to open Recycling access 5214 | -7/Storage | Discovered new exit (range 3) 5217 | -7/Storage | Entered Recycling 5236 | -7/Recycling | Found Scrap Engine 5541 | -7/Recycling | Build established: Mutant 6039 | -7/Recycling | Build established: Construct 6492 | -7/Recycling | Discovered new exit (range 7) 6520 | -7/Recycling | Entered Factory 6520 | -5/Factory | Evolved 4 slots: Propulsion x1, Utility x3 6689 | -5/Factory | Identified exit to Upper Caves 6815 | -5/Factory | Build established: Mutant 6820 | -5/Factory | Search patrols dispatched 7172 | -5/Factory | Entered Upper Caves 7275 | -5/Upper Caves | Discovered new exit (range 80) 7415 | -5/Upper Caves | Learned 4 Factory zone layouts 7506 | -5/Upper Caves | Encountered a Warlord checkpoint 7607 | -5/Upper Caves | Entered another Upper Caves area 7786 | -5/Upper Caves | Discovered new exit (range 3) 7795 | -5/Upper Caves | Entered Factory 7795 | -4/Factory | Evolved 2 slots: Power x1, Propulsion x1 8093 | -4/Factory | Discovered new exit (range 3) 8229 | -4/Factory | Found Powered Armor 8606 | -4/Factory | Discovered new exit (range 6) 8809 | -4/Factory | Entered Extension 8899 | -4/Extension | Rescued a captive Derelict 8946 | -4/Extension | Rescued a captive Derelict 8947 | -4/Extension | Rescued a captive Derelict 8969 | -4/Extension | Rescued a captive Derelict 9245 | -4/Extension | Rescued a captive Derelict 9245 | -4/Extension | Rescued a captive Derelict 9323 | -4/Extension | Rescued a captive Derelict 9329 | -4/Extension | Rescued a captive Derelict 9384 | -4/Extension | Disrupted transfer network 9462 | -4/Extension | Build established: Construct 9612 | -4/Extension | Spotted B-86 Titan 9661 | -4/Extension | Spotted B-86 Titan 9677 | -4/Extension | Allies destroyed B-86 Titan 9725 | -4/Extension | Lost 5 allies 9748 | -4/Extension | Lost 3 parts (2u1w) 9752 | -4/Extension | Door terminal overloaded 9753 | -4/Extension | Rescued a captive Derelict 9776 | -4/Extension | Rescued a captive Derelict 9776 | -4/Extension | Rescued a captive Derelict 9920 | -4/Extension | Rescued a captive Derelict 10041 | -4/Extension | Rescued a captive Derelict 10050 | -4/Extension | Rescued A7 10067 | -4/Extension | Discovered new exit (range 10) 10067 | -4/Extension | Discovered new exit (range 6) 10098 | -4/Extension | Entered Cetus 10098 | -4/Cetus | Accompanied by 3 allies (A7) 10103 | -4/Cetus | Acquired a Cetus Manufacturing Module code from A7 10111 | -4/Cetus | Spotted Cetus Guard 10111 | -4/Cetus | Spotted Cetus Guard 10112 | -4/Cetus | Spotted Cetus Guard 10118 | -4/Cetus | Destroyed Cetus Guard 10118 | -4/Cetus | Spotted Cetus Guard 10119 | -4/Cetus | Allies destroyed Cetus Guard 10122 | -4/Cetus | Allies destroyed Cetus Guard 10124 | -4/Cetus | Destroyed Cetus Guard 10171 | -4/Cetus | Started Cetus Manufacturing Module 10196 | -4/Cetus | Manufactured an Enhanced Grunt 10221 | -4/Cetus | Manufactured an Enhanced Grunt 10246 | -4/Cetus | Manufactured an Enhanced Grunt 10271 | -4/Cetus | Manufactured an Enhanced Grunt 10296 | -4/Cetus | Manufactured an Enhanced Grunt 10313 | -4/Cetus | Discovered new exit (range 19) 10347 | -4/Cetus | Spotted Cetus Guard 10347 | -4/Cetus | Spotted Cetus Guard 10348 | -4/Cetus | Spotted Cetus Guard 10353 | -4/Cetus | Spotted Cetus Guard 10355 | -4/Cetus | Allies destroyed Cetus Guard 10358 | -4/Cetus | Allies destroyed Cetus Guard 10361 | -4/Cetus | Allies destroyed Cetus Guard 10364 | -4/Cetus | Destroyed Cetus Guard 10364 | -4/Cetus | Discovered new exit (range 20) 10375 | -4/Cetus | Met Revision 17 10445 | -4/Cetus | Murdered A7 10445 | -4/Cetus | Destroyed A7 10446 | -4/Cetus | Extracted ID and sensor layout for unrecognized location from A7's data core 10454 | -4/Cetus | Found Prototype Protection 10454 | -4/Cetus | Identified Med. Regenerative Plating 10504 | -4/Cetus | Entered Archives 10504 | -4/Archives | Accompanied by 7 allies 10558 | -4/Archives | Discovered new exit (range 20) 10563 | -4/Archives | Discovered new exit (range 20) 10585 | -4/Archives | Discovered new exit (range 20) 10808 | -4/Archives | Entered Hub_04(d) 10808 | -4/Hub_04(d) | Accompanied by 6 allies 10846 | -4/Hub_04(d) | Build established: Scavenger-Construct 10882 | -4/Hub_04(d) | Discovered new exit (range 17) 10930 | -4/Hub_04(d) | P-70 Sage assimilated allied 7C-Q8M(h) 10999 | -4/Hub_04(d) | Lost 4 allies 11085 | -4/Hub_04(d) | Entered Research 11085 | -3/Research | Evolved 2 slots: Utility x2 11235 | -3/Research | Found Prototype Device 11285 | -3/Research | Revision forces began assault on 0b10 11294 | -3/Research | Identified Exp. Thermal Defense Suite 11377 | -3/Research | Met up with Revision 17++ 11541 | -3/Research | Local machine network offline 11614 | -3/Research | Found Prototype Processor 11785 | -3/Research | Research terminal network offline 12382 | -3/Research | Found Prototype Device 12422 | -3/Research | Found Prototype Launcher 12422 | -3/Research | Identified Mni. Smartbomb Launcher 12470 | -3/Research | Found Fusion Bomb Launcher 12539 | -3/Research | Found Unknown Device 12539 | -3/Research | Identified Quantum Capacitor 12584 | -3/Research | Found Gamma Bomb Array 12697 | -3/Research | Discovered new exit (range 30) 12782 | -3/Research | Spotted Striker 12845 | -3/Research | Found Prototype Processor 12845 | -3/Research | Identified Exp. Core Analyzer 12849 | -3/Research | Found Exp. Core Analyzer 13068 | -3/Research | Identified exit to Research 13105 | -3/Research | Discovered exit to Research (range 19) 13196 | -3/Research | Entered another Research area 13196 | -2/Research | Evolved 2 slots: Utility x1, Weapon x1 13341 | -2/Research | Identified Adv. Kinecellerator 13341 | -2/Research | Identified Exp. Signal Interpreter 13392 | -2/Research | Spotted B-90 Cyclops 13545 | -2/Research | Garrison activated, responded to threat 13624 | -2/Research | Identified exit to Access 14035 | -2/Research | Entered Access 14035 | -1/Access | Evolved 2 slots: Power x1, Utility x1 14596 | -1/Access | Garrison activated, responded to threat 15638 | -1/Access | Discovered new exit (range 5) 15642 | -1/Access | Entered Command 15916 | -1/Command | Destroyed 10 combat bots 15931 | -1/Command | First assault squad dispatched 16071 | -1/Command | Spotted M Guard 16071 | -1/Command | Spotted M Guard 16087 | -1/Command | Spotted Combat Programmer 16104 | -1/Command | Spotted Combat Programmer 16131 | -1/Command | Destroyed Combat Programmer 16146 | -1/Command | Destroyed Combat Programmer 16203 | -1/Command | Destroyed M Guard 16216 | -1/Command | Found Prototype Reactor 16216 | -1/Command | Identified Zero-point Reactor 16228 | -1/Command | Found Exp. Targeting Computer 16665 | -1/Command | System corruption reached 10% 16717 | -1/Command | Met MAIN.C 16730 | -1/Command | High security lockdown imminent 16753 | -1/Command | 0b10 Conduit disabled 16810 | -1/Command | High security lockdown engaged 16818 | -1/Command | Core integrity fell below 50% 16823 | -1/Command | Destroyed 9 combat bots 16843 | -1/Command | Core integrity fell below 20% 16849 | -1/Command | System corruption reached 30% 16852 | -1/Command | Destroyed by MAIN.C with Heavy Quantum Rifle Last Messages --------------- 16815_ Exp. Targeting Computer destroyed. 16816_ Acquired 23 matter. 16817_ System corrupted: Ionic Axe rejected. 16817_ Acquired Ionic Axe. 16818_ Adv. Targeting Computer destroyed. 16822_ Acquired 11 matter. 16823_ Acquired 176 matter. 16824_ G-73 Enforcer destroyed. 16830_ ALERT: Assault forces dispatched. 16834_ System corrupted: Ionic Axe rejected. 16834_ Acquired Ionic Axe. 16838_ Ionic Axe destroyed. 16838_ Exp. Core Analyzer destroyed. 16847_ Slammed into Heavy Barrier. 16847_ Exp. Core Analyzer broken. 16847_ Destabilizing: Short circuit. 16848_ Slammed into Heavy Barrier. 16848_ Broken Exp. Core Analyzer destroyed. 16848_ System corrupted by crushing effect (+1). 16848_ Destabilizing: System corrupted (+1). Map ----- +----------------------------------------------------+ | ?????????????????????????????????????????????????? | | ?????????????????????????????????????????????????? | | ?????????????????????????????????????????????????? | | ????????????????????????????????????????????????## | | ???????????????????????????????????????????????? # | | ???????????????????????????????????????????????# # | | ???????????????????????????????????????????????#"# | | ???????????????????????????????????????????????#"# | | ???????????????????????????????#################"# | | ??????????????????????????????"" """" ##*# | | ?????????????????????????????? "" !#%%# | | ??????????????????????????????? "" ==#*%# | | ?????????????????????????""""?"""""" **=!!% | | ?????????????????????????" "? " /!/*!% | | ?????????????????????????"" """""" !!=/*=! | | ????????????????????????#"" """""" MMM !!#### | | ????????????????????????# " """""" MMM *#??? | | ????????????????????????# " "" MMM #??? | | ????????????????????????# " " ""#??? | | ????????????????????????#""""""" " "" #??? | | ????????????????????????#"" % """""""""#??? | | ????????????????????????# % """""""""""#??? | | ????????????????????????# " " " " #??? | | ????????????????????????# " " " " #??? | | ????????????????????????" " " " """" " #??? | | ????????????????????????"@ """ " " """" ???? | | ????????????????????????" " " " ? ????? | | ????????????????????????# """""""""" ???????? | | ????????????????????????# " """ " """????????? | | ????????????????????????# """ " "??????????? | | ????????????????????????###############??????????? | | ?????????????????????????????????????????????????? | | ?????????????????????????????????????????????????? | | ?????????????????????????????????????????????????? | | ?????????????????????????????????????????????????? | | ?????????????????????????????????????????????????? | | ?????????????????????????????????????????????????? | | ?????????????????????????????????????????????????? | | ?????????????????????????????????????????????????? | | ?????????????????????????????????????????????????? | | ?????????????????????????????????????????????????? | | ?????????????????????????????????????????????????? | | ?????????????????????????????????????????????????? | | ?????????????????????????????????????????????????? | | ?????????????????????????????????????????????????? | | ?????????????????????????????????????????????????? | | ?????????????????????????????????????????????????? | | ?????????????????????????????????????????????????? | | ?????????????????????????????????????????????????? | | ?????????????????????????????????????????????????? | +----------------------------------------------------+ Best States ------------- Heat Dissipation 124 Energy Generation 91 Energy Capacity 819 Matter Stores 440 Matter Capacity 500 Sight Range 20 Terrain Scan Density 10 Additional Mass Support 9 Armor Coverage 1075 Point Defense Rating 240 Phase Shifting 15 Evasion (%) 86 Targeting Accuracy 28 Core Analysis 12 Recoil Reduction 5 Kinecelleration 50 Offensive Hacking 14 Item Schematics ----------------- Imp. Kinecellerator | -7/Recycling | Hacked Lrn. Terrain Scanner | -4/Extension | Hacked Robot Schematics ------------------ None Fabricated ------------ Nothing Alien Tech Used ----------------- None Achievements -------------- None Challenges ------------ None Game ------ Seed MasterDisruptorDevice Manual? 0 Play Time 02:24:11 Cumulative 1343.4 hours Start 2024.01.04 @ 20:13:57 End 2024.01.04 @ 22:41:52 Sessions 1 Manual Loads 0 Difficulty Rogue Special Mode None Game No. 974 Rogue 934 Adventurer 40 Explorer 0 Win Type - Total 165 Types 77/7/55/2/1/4/16/2/1 Lore% 93 Gallery% 97 Achievement% 86 Wizard Run 0 Options --------- ASCII 0 Keyboard 0 Movement Numpad Keybinds 0 Fullscreen 0 Font 20/Terminus Map View 76x50 Zoom Use 0% Tactical HUD 1 Map Filters NONE Filters NONE Steam 1 RUN: 3a225ee5-bcc9-473d-a223-ebad39351ccf